[Event "Early-Titled-Tuesday-Blitz-July-09-2024"]
[Site "Chess.com"]
[Date "2024.07.09"]
[Round "6"]
[White "CrimeFightingSpider07"]
[Black "temus_galaktionov"]
[Result "0-1"]
[WhiteElo "2609"]
[BlackElo "2848"]
[TimeControl "180+1"]
[EndTime "9:09:47 PDT"]
[Termination "temus_galaktionov won by resignation"]

1. Nf3 {[%clk 0:03:00.9]} 1... c6 {[%clk 0:03:00.9]} 2. b3 {[%clk 0:02:57.1]}
2... d6 {[%clk 0:03:01.8]} 3. Bb2 {[%clk 0:02:56.8]} 3... Nf6 {[%clk 0:03:00.1]}
4. d4 {[%clk 0:02:56.5]} 4... g6 {[%clk 0:03:00.3]} 5. g3 {[%clk 0:02:57.1]}
5... Bg7 {[%clk 0:03:01.2]} 6. Bg2 {[%clk 0:02:57.7]} 6... O-O {[%clk
0:03:02.1]} 7. O-O {[%clk 0:02:57]} 7... Nbd7 {[%clk 0:03:03]} 8. c4 {[%clk
0:02:57.3]} 8... Re8 {[%clk 0:03:03.4]} 9. Nc3 {[%clk 0:02:56.8]} 9... e5 {[%clk
0:03:03.7]} 10. e4 {[%clk 0:02:57.5]} 10... a5 {[%clk 0:03:03.1]} 11. Re1 {[%clk
0:02:54.6]} 11... exd4 {[%clk 0:03:03.3]} 12. Nxd4 {[%clk 0:02:54.6]} 12... Nc5
{[%clk 0:03:03.9]} 13. Qd2 {[%clk 0:02:52.3]} 13... Qb6 {[%clk 0:03:04.1]} 14.
Nc2 {[%clk 0:02:41.5]} 14... Ng4 {[%clk 0:02:54]} 15. Na4 {[%clk 0:02:10.9]}
15... Nxa4 {[%clk 0:02:44.9]} 16. Bxg7 {[%clk 0:02:10]} 16... Kxg7 {[%clk
0:02:44.4]} 17. bxa4 {[%clk 0:02:10.2]} 17... Qc5 {[%clk 0:02:43.9]} 18. Ne3
{[%clk 0:01:59.4]} 18... Nxe3 {[%clk 0:02:40.7]} 19. Rxe3 {[%clk 0:01:58.8]}
19... Be6 {[%clk 0:02:40.2]} 20. Rd3 {[%clk 0:01:56.8]} 20... Qxc4 {[%clk
0:02:34]} 21. Rxd6 {[%clk 0:01:56.5]} 21... Qb4 {[%clk 0:02:34.2]} 22. a3 {[%clk
0:01:22.7]} 22... Qxd2 {[%clk 0:02:32.8]} 23. Rxd2 {[%clk 0:01:21.9]} 23... Re7
{[%clk 0:02:22.4]} 24. Rb1 {[%clk 0:01:20.9]} 24... Rc8 {[%clk 0:02:20.4]} 25.
Rb6 {[%clk 0:01:14.6]} 25... Rcc7 {[%clk 0:02:19.1]} 26. Rbb2 {[%clk 0:00:52.1]}
26... Red7 {[%clk 0:02:19.2]} 27. Rxd7 {[%clk 0:00:16.8]} 27... Rxd7 {[%clk
0:02:19.1]} 28. f4 {[%clk 0:00:15.8]} 28... Kf8 {[%clk 0:02:17.8]} 29. e5 {[%clk
0:00:14.6]} 29... Ke7 {[%clk 0:02:17.9]} 30. Kf2 {[%clk 0:00:11]} 30... Kd8
{[%clk 0:02:16.9]} 31. Ke3 {[%clk 0:00:08.9]} 31... Kc7 {[%clk 0:02:17.1]} 32.
Bf3 {[%clk 0:00:07.7]} 32... Bc4 {[%clk 0:02:13]} 33. Be4 {[%clk 0:00:08.2]}
33... Rd1 {[%clk 0:02:09.8]} 34. g4 {[%clk 0:00:06.6]} 34... Ra1 {[%clk
0:02:02.9]} 35. Kd4 {[%clk 0:00:06.9]} 35... Be6 {[%clk 0:01:57]} 36. f5 {[%clk
0:00:07.5]} 36... Bd7 {[%clk 0:01:54.1]} 37. e6 {[%clk 0:00:07.6]} 37... fxe6
{[%clk 0:01:54.3]} 38. f6 {[%clk 0:00:08.3]} 38... Be8 {[%clk 0:01:53.7]} 39.
Ke5 {[%clk 0:00:08.9]} 39... Bf7 {[%clk 0:01:53.9]} 40. Rb3 {[%clk 0:00:06.6]}
40... Ra2 {[%clk 0:01:50]} 41. Rh3 {[%clk 0:00:06.9]} 41... h5 {[%clk
0:01:42.3]} 42. gxh5 {[%clk 0:00:07.4]} 42... gxh5 {[%clk 0:01:43.2]} 43. Rg3
{[%clk 0:00:08]} 43... Kd8 {[%clk 0:01:39.4]} 44. Rg7 {[%clk 0:00:08.6]} 44...
Ke8 {[%clk 0:01:40.3]} 45. Bg6 {[%clk 0:00:06.1]} 45... Bxg6 {[%clk 0:01:39.2]}
46. Rxg6 {[%clk 0:00:06.8]} 46... Re2+ {[%clk 0:01:33.1]} 47. Kd6 {[%clk
0:00:07.5]} 47... Kf7 {[%clk 0:01:33.3]} 48. Rg7+ {[%clk 0:00:08.2]} 48... Kxf6
{[%clk 0:01:33.6]} 49. Rxb7 {[%clk 0:00:08.8]} 49... Re4 {[%clk 0:01:31.9]} 50.
Kxc6 {[%clk 0:00:07.1]} 50... Rxa4 {[%clk 0:01:31.7]} 51. Rb3 {[%clk 0:00:07.8]}
51... Rd4 {[%clk 0:01:26.2]} 52. Rf3+ {[%clk 0:00:06.2]} 52... Kg5 {[%clk
0:01:25.4]} 53. Re3 {[%clk 0:00:04.8]} 53... Kf5 {[%clk 0:01:25.1]} 54. Rh3
{[%clk 0:00:05.1]} 54... h4 {[%clk 0:01:24.8]} 55. Kb5 {[%clk 0:00:05.5]} 55...
a4 {[%clk 0:01:23.4]} 56. Rf3+ {[%clk 0:00:04.7]} 56... Kg4 {[%clk 0:01:19.9]}
57. Re3 {[%clk 0:00:04.5]} 57... Kf5 {[%clk 0:01:19.1]} 58. Rf3+ {[%clk
0:00:04.8]} 58... Ke4 {[%clk 0:01:19.2]} 59. Rh3 {[%clk 0:00:04.4]} 59... Kd5
{[%clk 0:01:19.4]} 60. Rc3 {[%clk 0:00:03.5]} 60... e5 {[%clk 0:01:19.2]} 61.
Rc5+ {[%clk 0:00:04.1]} 61... Ke6 {[%clk 0:01:19.2]} 62. Rc6+ {[%clk 0:00:04.1]}
62... Kf5 {[%clk 0:01:19.3]} 63. Rh6 {[%clk 0:00:04.2]} 63... Kg5 {[%clk
0:01:12.4]} 64. Re6 {[%clk 0:00:03.5]} 64... Kf4 {[%clk 0:01:12.6]} 65. Rh6
{[%clk 0:00:04.2]} 65... Kf3 {[%clk 0:01:12.7]} 66. Rf6+ {[%clk 0:00:03.8]}
66... Rf4 {[%clk 0:01:12]} 67. Re6 {[%clk 0:00:04.6]} 67... e4 {[%clk
0:01:11.8]} 68. Kxa4 {[%clk 0:00:05.3]} 68... e3+ {[%clk 0:01:12.3]} 69. Kb3
{[%clk 0:00:06]} 69... e2 {[%clk 0:01:11.8]} 70. Kc2 {[%clk 0:00:05.5]} 70...
Kf2 {[%clk 0:01:10.1]} 71. Kd2 {[%clk 0:00:04.4]} 71... Rd4+ {[%clk 0:01:09.4]}
72. Kc3 {[%clk 0:00:05.1]} 72... Rd1 {[%clk 0:01:05]} 73. Rf6+ {[%clk
0:00:02.8]} 73... Kg2 {[%clk 0:01:04.9]} 74. Re6 {[%clk 0:00:02.1]} 74... e1=Q+
{[%clk 0:01:05.1]} 75. Rxe1 {[%clk 0:00:01.4]} 75... Rxe1 {[%clk 0:01:06]} 0-1

[Event "Early-Titled-Tuesday-Blitz-July-09-2024"]
[Site "Chess.com"]
[Date "2024.07.09"]
[Round "6"]
[White "zsizsi99"]
[Black "ural58"]
[Result "1/2-1/2"]
[WhiteElo "2535"]
[BlackElo "2422"]
[TimeControl "180+1"]
[EndTime "9:09:47 PDT"]
[Termination "Game drawn - insufficient material"]

1. e4 {[%clk 0:03:00.9]} 1... d5 {[%clk 0:02:34.1]} 2. exd5 {[%clk 0:03:00.1]}
2... Qxd5 {[%clk 0:02:34.3]} 3. Nc3 {[%clk 0:03:00.5]} 3... Qa5 {[%clk
0:02:33.9]} 4. d4 {[%clk 0:02:59.5]} 4... Nf6 {[%clk 0:02:33.7]} 5. Nf3 {[%clk
0:02:57.4]} 5... Nc6 {[%clk 0:02:33.3]} 6. Bc4 {[%clk 0:02:54.6]} 6... Bg4
{[%clk 0:02:32.4]} 7. h3 {[%clk 0:02:49.9]} 7... Qh5 {[%clk 0:02:29.7]} 8. O-O
{[%clk 0:02:45]} 8... Bxf3 {[%clk 0:02:28.2]} 9. Qxf3 {[%clk 0:02:42.9]} 9...
Qxf3 {[%clk 0:02:27.9]} 10. gxf3 {[%clk 0:02:43.3]} 10... Nxd4 {[%clk
0:02:27.8]} 11. Be3 {[%clk 0:02:42.7]} 11... Nxf3+ {[%clk 0:02:10.2]} 12. Kg2
{[%clk 0:02:42.5]} 12... Nh4+ {[%clk 0:02:10.1]} 13. Kh1 {[%clk 0:02:39.5]}
13... e6 {[%clk 0:02:06.7]} 14. Nb5 {[%clk 0:02:33.7]} 14... Bd6 {[%clk
0:02:05.8]} 15. Rad1 {[%clk 0:02:33.6]} 15... O-O {[%clk 0:02:04.9]} 16. Nxa7
{[%clk 0:02:20.9]} 16... Nf5 {[%clk 0:02:01.7]} 17. Nb5 {[%clk 0:02:12.8]} 17...
Nxe3 {[%clk 0:02:01.3]} 18. fxe3 {[%clk 0:02:08.8]} 18... Be5 {[%clk 0:02:01.1]}
19. c3 {[%clk 0:02:06.3]} 19... Nd5 {[%clk 0:01:53.5]} 20. Bxd5 {[%clk
0:01:47.9]} 20... exd5 {[%clk 0:01:47.7]} 21. Rxd5 {[%clk 0:01:48]} 21... Rfe8
{[%clk 0:01:44]} 22. Rd7 {[%clk 0:01:45.5]} 22... Rxa2 {[%clk 0:01:29.8]} 23.
Nxc7 {[%clk 0:01:42.8]} 23... Bxc7 {[%clk 0:01:28.8]} 24. Rxc7 {[%clk
0:01:42.8]} 24... Rxb2 {[%clk 0:01:17]} 25. Rfxf7 {[%clk 0:01:42.2]} 25... Rxe3
{[%clk 0:01:16]} 26. Rxg7+ {[%clk 0:01:26.5]} 26... Kf8 {[%clk 0:01:16]} 27.
Rgf7+ {[%clk 0:01:07.3]} 27... Ke8 {[%clk 0:01:15.9]} 28. Rg7 {[%clk 0:01:07.3]}
28... Kf8 {[%clk 0:00:45.5]} 29. Rgf7+ {[%clk 0:00:35.1]} 29... Ke8 {[%clk
0:00:45.4]} 30. Kg1 {[%clk 0:00:35.4]} 30... Rg3+ {[%clk 0:00:18.8]} 31. Kf1
{[%clk 0:00:34.6]} 31... Rxh3 {[%clk 0:00:19.3]} 32. Rfe7+ {[%clk 0:00:31.5]}
32... Kf8 {[%clk 0:00:19.5]} 33. Rf7+ {[%clk 0:00:30.5]} 33... Kg8 {[%clk
0:00:19.7]} 34. Rg7+ {[%clk 0:00:29.5]} 34... Kh8 {[%clk 0:00:19.8]} 35. Rg1
{[%clk 0:00:14.1]} 35... Rf3+ {[%clk 0:00:19.3]} 36. Ke1 {[%clk 0:00:14.1]}
36... Rf8 {[%clk 0:00:16.2]} 37. Rgg7 {[%clk 0:00:11.6]} 37... Rh2 {[%clk
0:00:10.8]} 38. Rxb7 {[%clk 0:00:11.1]} 38... Re8+ {[%clk 0:00:10.8]} 39. Kd1
{[%clk 0:00:08.8]} 39... Rd8+ {[%clk 0:00:10.9]} 40. Kc1 {[%clk 0:00:08.3]}
40... Rf8 {[%clk 0:00:10.9]} 41. Rgf7 {[%clk 0:00:05.9]} 41... Rxf7 {[%clk
0:00:11]} 42. Rxf7 {[%clk 0:00:06.2]} 42... Kg8 {[%clk 0:00:11.5]} 43. Rf1
{[%clk 0:00:05.3]} 43... h5 {[%clk 0:00:11]} 44. c4 {[%clk 0:00:05.6]} 44... Rh4
{[%clk 0:00:11.1]} 45. Kd2 {[%clk 0:00:05.4]} 45... Rxc4 {[%clk 0:00:11.3]} 46.
Rh1 {[%clk 0:00:05.8]} 46... Rc5 {[%clk 0:00:09.1]} 47. Ke3 {[%clk 0:00:05.9]}
47... Kg7 {[%clk 0:00:09.7]} 48. Kf4 {[%clk 0:00:06.4]} 48... Kh6 {[%clk
0:00:09.2]} 49. Kg3 {[%clk 0:00:07.2]} 49... Kg5 {[%clk 0:00:08.6]} 50. Kh2
{[%clk 0:00:07.5]} 50... Rc2+ {[%clk 0:00:07.8]} 51. Kh3 {[%clk 0:00:07.6]}
51... Rc3+ {[%clk 0:00:08.1]} 52. Kh2 {[%clk 0:00:08]} 52... Kh4 {[%clk
0:00:08.4]} 53. Rg1 {[%clk 0:00:08.5]} 53... Rc2+ {[%clk 0:00:07.4]} 54. Rg2
{[%clk 0:00:09.2]} 54... Rxg2+ {[%clk 0:00:06.1]} 55. Kxg2 {[%clk 0:00:09.4]}
55... Kg4 {[%clk 0:00:06.8]} 56. Kh2 {[%clk 0:00:10.3]} 56... h4 {[%clk
0:00:07.4]} 57. Kh1 {[%clk 0:00:11.2]} 57... h3 {[%clk 0:00:08.3]} 58. Kh2
{[%clk 0:00:11.6]} 58... Kg5 {[%clk 0:00:08.6]} 59. Kh1 {[%clk 0:00:12]} 59...
h2 {[%clk 0:00:08.1]} 60. Kxh2 {[%clk 0:00:12.7]} 1/2-1/2

[Event "Early-Titled-Tuesday-Blitz-July-09-2024"]
[Site "Chess.com"]
[Date "2024.07.09"]
[Round "6"]
[White "Feegus"]
[Black "andy07670"]
[Result "1-0"]
[WhiteElo "2620"]
[BlackElo "2412"]
[TimeControl "180+1"]
[EndTime "9:09:48 PDT"]
[Termination "Feegus won by resignation"]

1. d4 {[%clk 0:03:00.9]} 1... Nf6 {[%clk 0:02:59.3]} 2. c4 {[%clk 0:03:00.9]}
2... e6 {[%clk 0:02:59.4]} 3. Nf3 {[%clk 0:03:01.3]} 3... b6 {[%clk 0:02:59]} 4.
g3 {[%clk 0:03:01.5]} 4... Bb7 {[%clk 0:02:59.2]} 5. Bg2 {[%clk 0:03:02]} 5...
Be7 {[%clk 0:02:59.5]} 6. O-O {[%clk 0:03:02.1]} 6... O-O {[%clk 0:02:58.9]} 7.
Nc3 {[%clk 0:03:02.6]} 7... Ne4 {[%clk 0:02:58.9]} 8. Nxe4 {[%clk 0:03:03.2]}
8... Bxe4 {[%clk 0:02:58.8]} 9. Ne1 {[%clk 0:03:03.7]} 9... Bxg2 {[%clk
0:02:58.5]} 10. Nxg2 {[%clk 0:03:04.6]} 10... f5 {[%clk 0:02:55.9]} 11. b3
{[%clk 0:03:00.7]} 11... d6 {[%clk 0:02:55.5]} 12. Bb2 {[%clk 0:03:00.4]} 12...
Bf6 {[%clk 0:02:54.7]} 13. Rc1 {[%clk 0:02:59.1]} 13... Qe7 {[%clk 0:02:49.5]}
14. Qd2 {[%clk 0:02:58.7]} 14... Nd7 {[%clk 0:02:47.6]} 15. Rfd1 {[%clk
0:02:57.4]} 15... Rae8 {[%clk 0:02:44.4]} 16. Nf4 {[%clk 0:02:55.5]} 16... Bg5
{[%clk 0:02:30.5]} 17. e3 {[%clk 0:02:55.6]} 17... a5 {[%clk 0:02:23.4]} 18. d5
{[%clk 0:02:54.4]} 18... Bxf4 {[%clk 0:02:16.6]} 19. exf4 {[%clk 0:02:53.6]}
19... e5 {[%clk 0:01:59.5]} 20. fxe5 {[%clk 0:02:49.2]} 20... Nxe5 {[%clk
0:01:59]} 21. Bxe5 {[%clk 0:02:24.8]} 21... Qxe5 {[%clk 0:01:59.9]} 22. Re1
{[%clk 0:02:23.5]} 22... Qf6 {[%clk 0:01:57.6]} 23. f4 {[%clk 0:02:07.7]} 23...
h6 {[%clk 0:01:49.9]} 24. Kg2 {[%clk 0:02:05.1]} 24... Re4 {[%clk 0:01:31.7]}
25. Rxe4 {[%clk 0:02:00.2]} 25... fxe4 {[%clk 0:01:32.6]} 26. Re1 {[%clk
0:02:00.7]} 26... Re8 {[%clk 0:01:32.9]} 27. Re3 {[%clk 0:01:59.4]} 27... Qa1
{[%clk 0:01:20.7]} 28. Qe2 {[%clk 0:01:57.1]} 28... Qd4 {[%clk 0:01:21.1]} 29.
g4 {[%clk 0:01:48.9]} 29... a4 {[%clk 0:01:16.1]} 30. Kg3 {[%clk 0:01:46.9]}
30... axb3 {[%clk 0:01:16]} 31. axb3 {[%clk 0:01:47.8]} 31... Re7 {[%clk
0:01:11.9]} 32. h4 {[%clk 0:01:47.6]} 32... Kf8 {[%clk 0:01:00.6]} 33. h5 {[%clk
0:01:47.1]} 33... Kg8 {[%clk 0:01:00.3]} 34. Qe1 {[%clk 0:01:47.4]} 34... Kf8
{[%clk 0:00:54.4]} 35. Qc3 {[%clk 0:01:43.8]} 35... Qxc3 {[%clk 0:00:37.6]} 36.
Rxc3 {[%clk 0:01:44]} 36... Kf7 {[%clk 0:00:37.9]} 37. Kf2 {[%clk 0:01:33.3]}
37... Kf6 {[%clk 0:00:36.3]} 38. Ke3 {[%clk 0:01:33.4]} 38... g6 {[%clk
0:00:36.2]} 39. hxg6 {[%clk 0:01:32]} 39... Kxg6 {[%clk 0:00:36.4]} 40. Rc2
{[%clk 0:01:31.6]} 40... h5 {[%clk 0:00:35]} 41. gxh5+ {[%clk 0:01:30.8]} 41...
Kxh5 {[%clk 0:00:35.3]} 42. Rg2 {[%clk 0:01:31.4]} 42... Kh6 {[%clk 0:00:31.8]}
43. Rg5 {[%clk 0:01:28.9]} 43... Kh7 {[%clk 0:00:29.1]} 44. b4 {[%clk
0:01:28.5]} 44... Kh6 {[%clk 0:00:28.9]} 45. Rg3 {[%clk 0:01:20.8]} 45... Re8
{[%clk 0:00:28.1]} 46. Kd4 {[%clk 0:01:20.5]} 46... Re7 {[%clk 0:00:26.7]} 47.
Re3 {[%clk 0:01:20.3]} 47... Kg6 {[%clk 0:00:23.1]} 48. Rxe4 {[%clk 0:01:19.7]}
48... Rh7 {[%clk 0:00:23.4]} 49. c5 {[%clk 0:01:12.7]} 49... bxc5+ {[%clk
0:00:23.1]} 50. bxc5 {[%clk 0:01:13.6]} 50... dxc5+ {[%clk 0:00:21]} 51. Kxc5
{[%clk 0:01:13.6]} 51... Kf5 {[%clk 0:00:21.4]} 52. Rc4 {[%clk 0:01:08.4]} 52...
Rh6 {[%clk 0:00:19.5]} 53. Kd4 {[%clk 0:00:59.4]} 53... Kxf4 {[%clk 0:00:18.7]}
54. Rxc7 {[%clk 0:00:59.6]} 54... Rf6 {[%clk 0:00:16.3]} 55. Re7 {[%clk
0:00:58.7]} 55... Kf5 {[%clk 0:00:15.2]} 56. Kc5 {[%clk 0:00:57.1]} 56... Rh6
{[%clk 0:00:13.1]} 57. d6 {[%clk 0:00:56.4]} 57... Rh1 {[%clk 0:00:13]} 58. Kc6
{[%clk 0:00:53]} 58... Rc1+ {[%clk 0:00:12.7]} 59. Kd7 {[%clk 0:00:53.2]} 59...
Kf6 {[%clk 0:00:12.7]} 60. Re4 {[%clk 0:00:51.6]} 60... Rd1 {[%clk 0:00:11.5]}
61. Kc7 {[%clk 0:00:51.3]} 61... Kf7 {[%clk 0:00:09.9]} 62. d7 {[%clk
0:00:39.4]} 62... Rc1+ {[%clk 0:00:10.2]} 63. Kd6 {[%clk 0:00:36.4]} 63... Rd1+
{[%clk 0:00:10.3]} 64. Kc7 {[%clk 0:00:33.2]} 64... Rc1+ {[%clk 0:00:10.8]} 65.
Kd8 {[%clk 0:00:33.6]} 65... Rc2 {[%clk 0:00:11.4]} 66. Rf4+ {[%clk 0:00:33.1]}
66... Ke6 {[%clk 0:00:11.7]} 67. Ke8 {[%clk 0:00:33]} 67... Rh2 {[%clk
0:00:11.2]} 68. d8=Q {[%clk 0:00:31.2]} 68... Rh8+ {[%clk 0:00:11.4]} 69. Rf8
{[%clk 0:00:31.7]} 1-0

[Event "Early-Titled-Tuesday-Blitz-July-09-2024"]
[Site "Chess.com"]
[Date "2024.07.09"]
[Round "6"]
[White "Cherepov_Alexej"]
[Black "Statham_01"]
[Result "0-1"]
[WhiteElo "2435"]
[BlackElo "2658"]
[TimeControl "180+1"]
[EndTime "9:09:51 PDT"]
[Termination "Statham_01 won on time"]

1. d4 {[%clk 0:03:00.9]} 1... d5 {[%clk 0:03:00]} 2. c4 {[%clk 0:03:00.2]} 2...
Nc6 {[%clk 0:03:00.6]} 3. Nc3 {[%clk 0:02:57.5]} 3... dxc4 {[%clk 0:03:00.1]} 4.
d5 {[%clk 0:02:56.3]} 4... Na5 {[%clk 0:02:58.7]} 5. e4 {[%clk 0:02:46.6]} 5...
e6 {[%clk 0:02:58.3]} 6. Nf3 {[%clk 0:02:31.6]} 6... Nf6 {[%clk 0:02:51]} 7. Bg5
{[%clk 0:02:26.1]} 7... Be7 {[%clk 0:02:38.7]} 8. Qa4+ {[%clk 0:02:18.6]} 8...
c6 {[%clk 0:02:36.5]} 9. b4 {[%clk 0:02:07.4]} 9... cxb3 {[%clk 0:02:18.6]} 10.
axb3 {[%clk 0:02:06.9]} 10... b5 {[%clk 0:02:07.8]} 11. Nxb5 {[%clk 0:01:59.9]}
11... cxb5 {[%clk 0:02:03.9]} 12. Bxb5+ {[%clk 0:01:59.6]} 12... Kf8 {[%clk
0:01:59.5]} 13. O-O {[%clk 0:01:43.2]} 13... exd5 {[%clk 0:01:57.3]} 14. e5
{[%clk 0:01:33.9]} 14... Ng8 {[%clk 0:01:38.6]} 15. Bxe7+ {[%clk 0:01:33.1]}
15... Nxe7 {[%clk 0:01:39.5]} 16. Qxa5 {[%clk 0:01:33.1]} 16... Qxa5 {[%clk
0:01:32.1]} 17. Rxa5 {[%clk 0:01:34]} 17... Bg4 {[%clk 0:01:10.4]} 18. Nd4
{[%clk 0:01:29.1]} 18... g6 {[%clk 0:01:05.4]} 19. Rfa1 {[%clk 0:01:26.1]} 19...
Nc8 {[%clk 0:00:54.9]} 20. f3 {[%clk 0:01:17.1]} 20... Be6 {[%clk 0:00:43.1]}
21. Nxe6+ {[%clk 0:01:15.3]} 21... fxe6 {[%clk 0:00:44]} 22. Bd7 {[%clk
0:01:15.5]} 22... Kg7 {[%clk 0:00:33.1]} 23. Bxe6 {[%clk 0:01:08.9]} 23... d4
{[%clk 0:00:27.5]} 24. Bxc8 {[%clk 0:00:54.7]} 24... Raxc8 {[%clk 0:00:28.4]}
25. Rxa7+ {[%clk 0:00:55.1]} 25... Kh6 {[%clk 0:00:29.1]} 26. Rd7 {[%clk
0:00:54.6]} 26... Rc5 {[%clk 0:00:19.1]} 27. f4 {[%clk 0:00:49.3]} 27... Rf8
{[%clk 0:00:19.1]} 28. g3 {[%clk 0:00:49.1]} 28... Rc3 {[%clk 0:00:10]} 29. Rxd4
{[%clk 0:00:43.9]} 29... Kh5 {[%clk 0:00:10.3]} 30. Kg2 {[%clk 0:00:33.1]} 30...
Rxb3 {[%clk 0:00:07.8]} 31. Ra7 {[%clk 0:00:32.1]} 31... h6 {[%clk 0:00:03.7]}
32. Rh7 {[%clk 0:00:28.3]} 32... Rc8 {[%clk 0:00:02.9]} 33. Rd2 {[%clk
0:00:20.7]} 33... Rcc3 {[%clk 0:00:03.3]} 34. Re2 {[%clk 0:00:19.4]} 34... Rd3
{[%clk 0:00:03.7]} 35. e6 {[%clk 0:00:19.2]} 35... Re3 {[%clk 0:00:04.4]} 36.
Rxe3 {[%clk 0:00:12.9]} 36... Rxe3 {[%clk 0:00:05.3]} 37. e7 {[%clk 0:00:13.1]}
37... Kg4 {[%clk 0:00:05.3]} 38. Rxh6 {[%clk 0:00:12.1]} 38... Re2+ {[%clk
0:00:05.3]} 39. Kf1 {[%clk 0:00:12.2]} 39... Rxe7 {[%clk 0:00:06.1]} 40. Rxg6+
{[%clk 0:00:10.9]} 40... Kf3 {[%clk 0:00:06.7]} 41. Rc6 {[%clk 0:00:09.2]} 41...
Re3 {[%clk 0:00:06.7]} 42. Rc2 {[%clk 0:00:08.4]} 42... Ra3 {[%clk 0:00:06.8]}
43. Rf2+ {[%clk 0:00:05.9]} 43... Ke3 {[%clk 0:00:07.2]} 44. Kg2 {[%clk
0:00:05.9]} 44... Ra7 {[%clk 0:00:05]} 45. f5 {[%clk 0:00:06.2]} 45... Ra2
{[%clk 0:00:05.4]} 46. Rb2 {[%clk 0:00:04.5]} 46... Rxb2+ {[%clk 0:00:05.5]} 47.
Kh3 {[%clk 0:00:04.9]} 47... Ke4 {[%clk 0:00:05.7]} 48. g4 {[%clk 0:00:04.8]}
48... Kf4 {[%clk 0:00:05.5]} 49. f6 {[%clk 0:00:04]} 49... Kg5 {[%clk
0:00:05.5]} 50. f7 {[%clk 0:00:03]} 50... Rb3+ {[%clk 0:00:06.1]} 51. Kg2 {[%clk
0:00:02.7]} 51... Rb8 {[%clk 0:00:07]} 52. Kg3 {[%clk 0:00:01.9]} 52... Rf8
{[%clk 0:00:07.2]} 53. h4+ {[%clk 0:00:01.8]} 53... Kf6 {[%clk 0:00:08.1]} 54.
g5+ {[%clk 0:00:01.8]} 54... Kxf7 {[%clk 0:00:08]} 55. Kg4 {[%clk 0:00:02.4]}
55... Rd8 {[%clk 0:00:08.5]} 0-1

[Event "Early-Titled-Tuesday-Blitz-July-09-2024"]
[Site "Chess.com"]
[Date "2024.07.09"]
[Round "6"]
[White "jumpingknight20"]
[Black "Shield12"]
[Result "1/2-1/2"]
[WhiteElo "2790"]
[BlackElo "2977"]
[TimeControl "180+1"]
[EndTime "9:09:52 PDT"]
[Termination "Game drawn by repetition"]

1. e4 {[%clk 0:03:00.9]} 1... c5 {[%clk 0:03:00.6]} 2. c3 {[%clk 0:03:00.2]}
2... Nf6 {[%clk 0:02:59.4]} 3. e5 {[%clk 0:03:00.1]} 3... Nd5 {[%clk 0:02:59.9]}
4. d4 {[%clk 0:03:00.4]} 4... cxd4 {[%clk 0:02:58.7]} 5. cxd4 {[%clk 0:03:01.3]}
5... d6 {[%clk 0:02:59]} 6. Nf3 {[%clk 0:03:01.6]} 6... Nc6 {[%clk 0:02:58.8]}
7. Bc4 {[%clk 0:03:01.7]} 7... dxe5 {[%clk 0:02:52]} 8. dxe5 {[%clk 0:03:01.7]}
8... Be6 {[%clk 0:02:52.4]} 9. O-O {[%clk 0:02:57]} 9... g6 {[%clk 0:02:50]} 10.
Qe2 {[%clk 0:02:53.9]} 10... Bg7 {[%clk 0:02:50]} 11. Rd1 {[%clk 0:02:14.4]}
11... O-O {[%clk 0:02:48.9]} 12. a3 {[%clk 0:02:01.2]} 12... Qa5 {[%clk
0:02:36.5]} 13. Bd2 {[%clk 0:01:29.8]} 13... Qc7 {[%clk 0:02:35.1]} 14. Nc3
{[%clk 0:01:25.8]} 14... Rad8 {[%clk 0:02:19.4]} 15. h3 {[%clk 0:01:11.4]} 15...
Nxe5 {[%clk 0:01:55.1]} 16. Bxd5 {[%clk 0:01:10.9]} 16... Bxd5 {[%clk
0:01:53.9]} 17. Nxe5 {[%clk 0:00:41.1]} 17... Bxe5 {[%clk 0:01:46.8]} 18. Bh6
{[%clk 0:00:36.1]} 18... Bb3 {[%clk 0:01:41]} 19. Rxd8 {[%clk 0:00:19.3]} 19...
Rxd8 {[%clk 0:01:39.9]} 20. Nb5 {[%clk 0:00:18.7]} 20... Bc4 {[%clk 0:01:25]}
21. Nxc7 {[%clk 0:00:14.2]} 21... Bxe2 {[%clk 0:01:25]} 22. Rc1 {[%clk
0:00:15.1]} 22... Bxb2 {[%clk 0:01:19.5]} 23. Rc2 {[%clk 0:00:15.4]} 23... Rd1+
{[%clk 0:01:14.5]} 24. Kh2 {[%clk 0:00:15.8]} 24... Be5+ {[%clk 0:01:08.9]} 25.
f4 {[%clk 0:00:16.2]} 25... Bd3 {[%clk 0:01:07.2]} 26. Rc5 {[%clk 0:00:15.8]}
26... Bd6 {[%clk 0:01:02.1]} 27. Rc3 {[%clk 0:00:16]} 27... f6 {[%clk 0:00:52]}
28. Ne8 {[%clk 0:00:12.2]} 28... Bf5 {[%clk 0:00:35]} 29. Nxd6 {[%clk
0:00:10.7]} 29... Rxd6 {[%clk 0:00:35.9]} 30. Rc7 {[%clk 0:00:10.1]} 30... Rd7
{[%clk 0:00:33.9]} 31. Rc8+ {[%clk 0:00:10.6]} 31... Kf7 {[%clk 0:00:33.7]} 32.
Rh8 {[%clk 0:00:06.1]} 32... g5 {[%clk 0:00:26.2]} 33. fxg5 {[%clk 0:00:07]}
33... fxg5 {[%clk 0:00:26.6]} 34. Bxg5 {[%clk 0:00:06.5]} 34... Rd3 {[%clk
0:00:24.2]} 35. Rb8 {[%clk 0:00:06.3]} 35... Be4 {[%clk 0:00:24]} 36. a4 {[%clk
0:00:05.1]} 36... Ra3 {[%clk 0:00:21.7]} 37. Rc8 {[%clk 0:00:05.3]} 37... Ra2
{[%clk 0:00:20.6]} 38. Kg3 {[%clk 0:00:04.3]} 38... Rxg2+ {[%clk 0:00:20.3]} 39.
Kf4 {[%clk 0:00:05]} 39... Bc6 {[%clk 0:00:19.1]} 40. Rc7 {[%clk 0:00:05.4]}
40... Re2 {[%clk 0:00:18.1]} 41. a5 {[%clk 0:00:06.1]} 41... Re4+ {[%clk
0:00:17.2]} 42. Kf5 {[%clk 0:00:05.7]} 42... Bd5 {[%clk 0:00:16.4]} 43. Bh6
{[%clk 0:00:03.1]} 43... Re6 {[%clk 0:00:15.4]} 44. Bg5 {[%clk 0:00:03.3]} 44...
Bc6 {[%clk 0:00:14.3]} 45. Bh4 {[%clk 0:00:03.3]} 45... Re4 {[%clk 0:00:14]} 46.
Bg5 {[%clk 0:00:03.6]} 46... Re1 {[%clk 0:00:13.3]} 47. a6 {[%clk 0:00:03.7]}
47... Rf1+ {[%clk 0:00:11.9]} 48. Ke5 {[%clk 0:00:04.1]} 48... Bg2 {[%clk
0:00:07.7]} 49. axb7 {[%clk 0:00:04]} 49... Re1+ {[%clk 0:00:08.3]} 50. Kf4
{[%clk 0:00:03.5]} 50... Rb1 {[%clk 0:00:08.4]} 51. Rxe7+ {[%clk 0:00:03.5]}
51... Kg6 {[%clk 0:00:08.8]} 52. Re6+ {[%clk 0:00:03.6]} 52... Kg7 {[%clk
0:00:08.5]} 53. Re7+ {[%clk 0:00:04.1]} 53... Kg6 {[%clk 0:00:08.8]} 54. Re6+
{[%clk 0:00:04.6]} 54... Kf7 {[%clk 0:00:09.1]} 55. Re7+ {[%clk 0:00:05.1]}
55... Kg6 {[%clk 0:00:09.2]} 1/2-1/2